Cogmind - Beta 15 @@@ ROGUE MODE // 2025.06.04 @ 10:03:12 Player: Fleshy Vegetable Bird Result: Destroyed by H-66 Slayer with Heavy Assault Rifle Performance ------------- Evolutions (4) 2000 Regions Visited (9) 1800 Robots Destroyed (98) 490 Value Destroyed (3021) 3021 Prototype IDs (14) 280 Alien Tech Used (0) 0 Bonus (2242) 2242 TOTAL SCORE: 9833 Bonus ------- High Alert Combat Kills 356 Follower Combat Kills 823 Registered with UFD 300 Met Optimus in HQ 500 Met Imprinter 300 Friendly Fire -37 Cogmind --------- Core Integrity 0/850 Matter 295/300 Energy 160/160 System Corruption 0% Temperature Cool (0) Movement Walking (190) Ox1 Location -5/Proximity Caves Parts ------- > --- POWER (1) -------- Light Fission Core > --- PROPULSION (4) --- Spiked Medium Treads Makeshift Leg Armored Leg > --- UTILITY (7) ------ Machine Analyzer Enhanced Optical Array 0b10 Decoder Chip [Generic] 0b10 Decoder Chip [Looter] 0b10 Decoder Chip [Scout] 0b10 Decoder Chip [Skirmisher] Hacking Suite > --- WEAPON (3) ------- Beamcaster Ripper Carbide Saw > --- INVENTORY (5) ---- Improved Proton Missile Launcher CPS Tube (1) Fire Trap Peak State ------------ > --- POWER ------------ Cold Fusion Reactor > --- PROPULSION ------- Improved Medium Treads Improved Medium Treads Armored Huge Wheel > --- UTILITY ---------- Advanced Heat Sink Humpback Experimental Sensor Array Improved Signal Interpreter Improved Particle Charger Hacking Suite > --- WEAPON ----------- Phase Cannon Phase Cannon Phase Cannon > --- INVENTORY -------- Heavy Deuterium Engine Armored Treads Wheel Wheel Wheel Scrap Suit High-capacity Storage Unit Large Matter Pod Matter Compressor Structural Scanner Advanced Melee Analysis Suite Core Analyzer Phase Shifter Improved Core Shielding Hardened Medium Armor Plating Hardened Heavy Armor Plating Thermal Shield EM Shield System Shield Scrapoid Pod Phase Cannon Heavy Rocket Launcher CPS Tube CPS Tube Axe Great Axe Carbide Saw Vortex Trap Vortex Trap Vortex Trap Large Botcube [Rating: 79] Favorites ----------- Power Subdweller Power Source Engine Subdweller Power Source Power Core Light Fission Core Reactor Cold Fusion Reactor Propulsion Wheel Treads Light Treads Leg Makeshift Leg Wheel Wheel Flight Unit VTOL Module Utility Hacking Suite Device Experimental Sensor Array Storage Humpback Processor Improved Signal Interpreter Hackware Hacking Suite Protection Hardened Medium Armor Plating Weapon Makeshift Axe Energy Gun Improved Spread Laser Energy Cannon Phase Cannon Ballistic Gun Assault Rifle Ballistic Cannon Flak Cannon Launcher Improved Proton Missile Launcher Special Weapon CPS Tube Slashing Weapon Makeshift Axe Piercing Weapon Makeshift Spear Build | -11 -10 -10 -8 -8 -6 -6 -6 -6 -5 ------- Run | Yrd Mat Sub Rec Scr Fac Low Low Zio Pro Slots Evolved 8 | . . . . . 8 . . . . Power . | . . . . . . . . . . Propulsion 2 | . . . . . 2 . . . . Utility 5 | . . . . . 5 . . . . Weapon 1 | . . . . . 1 . . . . Parts Attached 123 | 10 13 12 6 6 40 10 20 5 1 Power 13 | 1 1 2 . 1 4 1 3 . . Engine 9 | 1 1 2 . 1 3 . 1 . . Core 3 | . . . . . . 1 2 . . Reactor 1 | . . . . . 1 . . . . Propulsion 37 | 4 3 6 1 2 9 4 7 . 1 Treads 6 | . . . 1 . 4 . 1 . . Leg 7 | . . . . . . 4 2 . 1 Wheel 22 | 4 3 6 . 2 5 . 2 . . Hover . | . . . . . . . . . . Flight 2 | . . . . . . . 2 . . Utility 39 | 2 5 . 3 2 18 2 4 3 . Device 13 | 1 2 . . . 10 . . . . Storage 7 | 1 2 . 1 2 1 . . . . Processor 10 | . . . 1 . 2 . 4 3 . Hackware 2 | . . . . . 2 . . . . Protection 7 | . 1 . 1 . 3 2 . . . Artifact . | . . . . . . . . . . Weapon 34 | 3 4 4 2 1 9 3 6 2 . Energy Gun 8 | . . 1 . . 4 . 2 1 . Energy Cannon 8 | . 2 2 . . 3 1 . . . Ballistic Gun 7 | 3 2 . 1 . . 1 . . . Ballistic Cannon 1 | . . . 1 . . . . . . Launcher 1 | . . . . . . . 1 . . Special Weapon 2 | . . . . 1 . . 1 . . Impact Weapon . | . . . . . . . . . . Slashing Weapon 6 | . . 1 . . 2 1 1 1 . Piercing Weapon 1 | . . . . . . . 1 . . Special Melee Weapon . | . . . . . . . . . . Unidentified Prototypes 5 | . . . . . 5 . . . . Corrupted Parts 1 | . . . . . . 1 . . . System Corruption 10 | . . . . . . 10 . . . Parts Lost 31 | . . 4 1 . 10 7 8 . 1 Power 5 | . . 2 . . 1 1 1 . . Propulsion 11 | . . 1 1 . 2 4 2 . 1 Utility 9 | . . 1 . . 4 1 3 . . Weapon 6 | . . . . . 3 1 2 . . Highest Loss Streak 8 | . . 3 1 . 2 5 8 . 1 To Critical Strikes . | . . . . . . . . . . Average Backups 14 | 2 9 9 12 15 25 7 4 2 2 Power . | . 1 . . . . . . . . Propulsion 1 | . . 1 1 1 1 . . . . Utility 8 | . 4 5 7 9 15 2 . . . Weapon 3 | . 3 2 3 3 4 2 1 1 1 Tool/Special . | . . . . . . . . . . Unused Backups 48 | . 1 1 . 19 19 . 8 . . Power 4 | . . . . 1 . . 3 . . Propulsion 3 | . . . . 2 1 . . . . Utility 26 | . . 1 . 8 14 . 3 . . Weapon 11 | . 1 . . 6 2 . 2 . . Tool/Special 4 | . . . . 2 2 . . . . Average Slot Usage (%) 91 | . 99 99 100 89 89 87 69 98 99 Engine 9 | . 14 13 14 13 4 . 2 . . Core 1 | . . . . . . 4 2 6 6 Treads 6 | . . . 10 6 12 3 1 6 6 Leg 2 | . . . . . . 16 11 13 13 Wheel 15 | . 28 28 17 19 10 1 . 6 5 Device 5 | . 8 11 2 . 12 13 1 . . Storage 9 | . 14 14 14 13 5 6 . . . Processor 7 | . . . 9 . 6 6 13 38 40 Hackware 3 | . . . . . 10 6 6 6 6 Protection 3 | . 5 2 1 6 1 11 1 . . Energy Gun 3 | . . 2 12 . 7 . 2 6 6 Energy Cannon 4 | . 2 23 9 . 6 4 . . . Ballistic Gun 3 | . 25 . 1 3 . 2 . . . Ballistic Cannon 4 | . . . 1 10 1 . . . . Special Weapon 1 | . . . . 3 . . . . . Slashing Weapon 6 | . . 1 3 10 2 5 5 12 13 Peak Build Rating 79 | 7 8 15 17 23 79 61 58 66 69 Average Rating 34 | 6 7 10 15 18 61 55 41 64 66 On Entrance 29 | . 7 8 15 17 23 44 58 52 66 Naked Turns . | . . . . . . . . . . Heaviest Build 249 | 13 22 28 43 214 249 79 77 18 18 Greatest Support 108 | 26 20 40 20 20 108 73 73 36 36 Greatest Overweight (x) 23 | 1 1 2 2 10 23 2 2 . 1 Average Overweight (x) 2 | . . 1 1 3 10 1 . . . Largest Inventory Capacity 35 | 8 10 10 15 35 35 20 20 5 5 Average Capacity 19 | 7 9 10 13 20 34 20 6 5 5 Most Carried 35 | 5 10 10 14 34 35 20 19 5 5 Average Carried 17 | 3 9 9 12 17 32 12 6 5 4 Final Capacity 35 | 8 10 10 15 35 20 20 5 5 5 Final Carried 33 | 4 10 10 13 33 12 19 5 5 3 Class Distribution -------------------- 45% | Mutant 16% | Hauler-Mutant 13% | Derelict-Mutant 10% | Hauler-Skirmisher 8% | Scavenger-Mutant 3% | Hauler-Assassin Dominant Class ---------------- Mutant | -10/Materials Mutant | -10/Subcaves Scavenger-Mutant | -8/Recycling Mutant | -8/Scraptown Hauler-Skirmisher | -6/Factory Mutant | -6/Lower Caves Derelict-Mutant | -6/Lower Caves Derelict-Mutant | -6/Zion Derelict-Mutant | -5/Proximity Caves Resources | -11 -10 -10 -8 -8 -6 -6 -6 -6 -5 ----------- Run | Yrd Mat Sub Rec Scr Fac Low Low Zio Pro Matter Collected 3562 | 376 634 180 90 171 1606 131 324 50 . Remotely . | . . . . . . . . . . Salvage Created 4603 | 185 543 482 140 332 2247 358 316 . . Parts 239 | 15 33 35 11 17 97 18 13 . . Haulers Intercepted 5 | . 2 . . . 3 . . . . Recyclers Shooed 4 | . . . . . 4 . . . . Parts Field Recycled . | . . . . . . . . . . Retrieved Matter . | . . . . . . . . . . Parts Self-Destructed 57 | . . 13 . 15 . 16 11 . 2 Prevented 14 | . . . . . . 2 10 . 2 Kills | -11 -10 -10 -8 -8 -6 -6 -6 -6 -5 ------- Run | Yrd Mat Sub Rec Scr Fac Low Low Zio Pro Combat Hostiles Destroyed 60 | . 9 14 3 . 25 4 5 . . Melee 7 | . . . . . 1 3 3 . . Guns 17 | . 8 3 2 . 4 . . . . Cannons 31 | . 1 10 1 . 18 1 . . . AOE 3 | . . . . . 2 . 1 . . Classes Destroyed 15 | 2 5 1 1 . 5 1 . . . Worker 11 | . 1 . . . 10 . . . . Builder 2 | . . . . . 2 . . . . Tunneler 7 | 5 2 . . . . . . . . Hauler 5 | . 2 . . . 3 . . . . Recycler 6 | 1 . . . . 5 . . . . Minesweeper 3 | . . . . . . 1 2 . . Operator 1 | . . . . . 1 . . . . Watcher 3 | . 3 . . . . . . . . Swarmer 11 | . 3 4 . . 2 1 1 . . Grunt 24 | . 6 . . . 13 1 4 . . Duelist 2 | . . . . . 2 . . . . Sentry 3 | . . . 3 . . . . . . Hunter 3 | . . . . . 1 2 . . . Programmer 7 | . . . . . 7 . . . . Subdweller 10 | . . 10 . . . . . . . Best Kill Streak 8 | 4 3 4 2 . 8 3 2 . . Combat Bots Only 4 | . 3 4 2 . 4 3 2 . . Max Kills in Single Turn 4 | 1 2 2 1 . 4 1 1 . . Gunslinging 1 | . 1 . . . . . . . . Exploded 2 | . . . . . 2 . 1 . . Melee 1 | . . . . . 1 1 1 . . Uniques/NPCs Destroyed . | . . . . . . . . . . Combat | -11 -10 -10 -8 -8 -6 -6 -6 -6 -5 -------- Run | Yrd Mat Sub Rec Scr Fac Low Low Zio Pro Hostile Shots Fired 486 | . 28 69 8 . 188 57 103 . 33 Missed 156 | . 10 28 1 . 48 17 41 . 11 Hits 330 | . 18 41 7 . 140 40 62 . 22 Melee 9 | . . . . . 7 . 2 . . Projectile 321 | . 18 41 7 . 133 40 60 . 22 AOE 3 | . . . . . 3 . . . . Critical Strikes 11 | . . . 1 . 5 . 5 . . Part Disruptions 1 | . . . . . . . 1 . . Damage Taken 6433 | . 201 670 102 . 3000 718 1411 . 331 Core 1029 | . 7 136 30 . 291 23 490 . 52 Absorbed by Shields . | . . . . . . . . . . Ignored by Resistances 176 | . . . . . 176 . . . . Regen/Repaired (Parts) 304 | . . . . . 293 . . 11 . Core Remaining (%) 65 | 100 . . . 30 . . . . . Volleys Fired 251 | 19 51 55 6 1 106 6 7 . . Largest 3 | 2 2 2 2 1 3 1 2 . . Hottest 255 | 40 120 140 140 . 255 85 108 . . Shots Fired 504 | 38 99 108 11 1 229 6 12 . . Gun 230 | 38 88 6 6 . 89 . 3 . . Cannon 266 | . 11 102 5 . 140 6 2 . . Launcher 6 | . . . . . . . 6 . . Special 2 | . . . . 1 . . 1 . . Kinetic 143 | 38 88 . 4 . 11 . 2 . . Thermal 353 | . 11 108 7 . 218 6 3 . . Explosive . | . . . . . . . . . . Electromagnetic 6 | . . . . . . . 6 . . Robot Hit Streak 32 | 6 9 32 9 6 22 3 7 . . Robot Miss Streak 5 | 3 3 2 2 . 5 1 1 . . Penetration Max . | . . . . . . . . . . Secondary Targets 1 | . 1 . . . . . . . . Max Gunslinging Chain 1 | . 1 . . . . . . . . Shots Hit Robots 371 | 22 62 68 8 18 160 17 16 . . Core Hits 214 | 9 26 22 6 6 128 6 11 . . Critical Kills 2 | . . 2 . . . . . . . Critical Parts Destroyed . | . . . . . . . . . . Critical Strikes 11 | . . 2 . . 4 3 2 . . Burn 3 | . . . . . 3 . . . . Meltdown 1 | . . 1 . . . . . . . Destroy 1 | . . 1 . . . . . . . Sever 5 | . . . . . 1 3 1 . . Impale 1 | . . . . . . . 1 . . Melee Attacks 67 | . . 6 . 17 13 19 10 2 . Impact . | . . . . . . . . . . Slashing 66 | . . 6 . 17 13 19 9 2 . Piercing 1 | . . . . . . . 1 . . Sneak Attacks 5 | . . . . . 3 . 2 . . Combat Hostiles 1 | . . . . . . . 1 . . Follow-up Attacks 4 | . . . . . 2 1 1 . . Damage Inflicted 10174 | 215 832 983 180 1094 5645 741 484 . . Guns 2956 | 215 763 118 98 . 1733 . 29 . . Cannons 3910 | . 69 865 82 . 2712 151 31 . . Explosions 1012 | . . . . . 794 . 218 . . Melee 2256 | . . . . 1094 366 590 206 . . Ramming 40 | . . . . . 40 . . . . Kinetic 1272 | 215 763 . 73 . 192 . 29 . . Thermal 5904 | . 69 983 107 . 4563 151 31 . . Explosive 484 | . . . . . 484 . . . . Electromagnetic 218 | . . . . . . . 218 . . Impact . | . . . . . . . . . . Slashing 2221 | . . . . 1094 366 590 171 . . Piercing 35 | . . . . . . . 35 . . Highest Corruption 14 | . . . . . 2 12 14 14 . Average Corruption 7 | . . . . . 1 5 13 14 . Corruption Purged 3 | . . . . . 3 . . . . Corruption Blocked . | . . . . . . . . . . Effects 69 | . . . . . 14 17 36 2 . Message Errors 17 | . . . . . 2 7 7 1 . Matter Fused 17 | . . . . . 5 2 10 . . Heat Flow Errors 10 | . . . . . 2 2 6 . . Energy Discharges 7 | . . . . . 1 1 4 1 . Parts Fused 1 | . . . . . . 1 . . . Data Loss (minor) 12 | . . . . . 3 4 5 . . Data Loss (major) 1 | . . . . . . . 1 . . Misfires 4 | . . . . . 1 . 3 . . Overload Shots . | . . . . . . . . . . Overflow Damage 506 | . 2 7 13 274 140 70 . . . Projectiles 127 | . 2 7 13 . 84 21 . . . Explosions 56 | . . . . . 56 . . . . Melee 323 | . . . . 274 . 49 . . . Knockbacks 8 | . . . . . 8 . . . . Impact 1 | . . . . . 1 . . . . Kinetic 7 | . . . . . 7 . . . . Secondary . | . . . . . . . . . . Self-Inflicted Damage 268 | . . . . . 268 . . . . Shots 3 | . . . . . 3 . . . . Rammed 2 | . . . . . 2 . . . . Targets Rammed 2 | . . . . . 2 . . . . Kicked . | . . . . . . . . . . Crushed . | . . . . . . . . . . Highest Temperature 365 | . 138 87 153 . 365 98 244 . . Average Temperature 77 | . 37 25 52 . 97 29 89 . . Received Heat Transfer 1439 | . 81 156 54 . 685 45 418 . . Effects 2 | . . . . . 2 . . . . Energy Bleed 1 | . . . . . 1 . . . . Interference 1 | . . . . . 1 . . . . Siege Activations . | . . . . . . . . . . Martial Activations . | . . . . . . . . . . Shielding Activations . | . . . . . . . . . . Robots Disrupted . | . . . . . . . . . . Combat Hostiles . | . . . . . . . . . . Robots Corrupted 1 | . . . . . . . 1 . . Combat Hostiles 1 | . . . . . . . 1 . . Parts Fried 3 | . . . . . . . 3 . . Impact Corruptions . | . . . . . . . . . . Robots Melted 1 | . . 1 . . . . . . . Combat Hostiles 1 | . . 1 . . . . . . . Parts Melted 10 | . . 1 . . 6 1 2 . . Heat Transferred 7728 | . 148 1901 137 . 5320 185 37 . . Parts Sabotaged 5 | . . . . . 1 . 4 . . Parts Stolen . | . . . . . . . . . . Parts Stripped . | . . . . . . . . . . Power Chain Reactions . | . . . . . . . . . . Alert | -11 -10 -10 -8 -8 -6 -6 -6 -6 -5 ------- Run | Yrd Mat Sub Rec Scr Fac Low Low Zio Pro Maximum Alert Level 4 | . . . . . 4 . . . . Low Security (%) 57 | 100 100 . 100 . 34 . . . . Level 1 20 | . . . . . 31 . . . . Level 2 10 | . . . . . 15 . . . . Level 3 10 | . . . . . 16 . . . . Level 4 . | . . . . . . . . . . Level 5 . | . . . . . . . . . . High Security . | . . . . . . . . . . Max Security . | . . . . . . . . . . Peak Influence 1118 | 10 86 . 55 . 1118 . . . . Initial 55 | . . . 55 . . . . . . Average 237 | 1 25 . 6 . 358 . . . . Influence Increases 3121 | 30 347 140 104 45 1811 160 419 . 65 Destroy 0b10 Robot/C 1480 | . 180 80 60 . 900 80 140 . 40 Destroy 0b10 Robot/NC 245 | 30 40 . . 45 110 10 10 . . Destroy Leader 294 | . 60 . . . 214 10 10 . . Allied During Kill 90 | . . . . . 76 . 4 . 10 Trap Triggered on 0b10 10 | . . . . . 10 . . . . Successful Hack 81 | . 18 . 27 . 36 . . . . Disable Machine 195 | . 15 . 15 . 165 . . . . Destroy Structure 126 | . 4 . 2 . 120 . . . . Lose Combat Pursuer 600 | . 30 60 . . 180 60 255 . 15 Influence Decreases 3121 | 30 329 42 220 45 695 882 550 263 65 Entered New Map 824 | . . 10 61 . . 414 76 263 . Time Decay 1950 | 30 329 32 137 45 575 398 374 . 30 Lost Part 260 | . . . 10 . 100 70 80 . . Lost Ally 75 | . . . . . 20 . 20 . 35 Purge Threat 12 | . . . 12 . . . . . . Squads Dispatched 22 | . 2 . . . 19 . 1 . . Investigation 5 | . . . . . 5 . . . . Extermination 8 | . . . . . 8 . . . . Reinforcement 6 | . 2 . . . 4 . . . . Assault 2 | . . . . . 1 . 1 . . Garrison 1 | . . . . . 1 . . . . Intercept . | . . . . . . . . . . Searches Triggered . | . . . . . . . . . . Construction Impeded 1 | . . . . . 1 . . . . Haulers Reinforced 2 | . . . . . 2 . . . . Active Scanning Responses . | . . . . . . . . . . Cargo Convoy Interrupts . | . . . . . . . . . . Stealth | -11 -10 -10 -8 -8 -6 -6 -6 -6 -5 --------- Run | Yrd Mat Sub Rec Scr Fac Low Low Zio Pro Distress Signals 3 | . . . . . 3 . . . . Communications Jammed . | . . . . . . . . . . Distress Signals . | . . . . . . . . . . Times Spotted 151 | . 20 16 3 . 66 10 31 . 5 Peak Tracking Total 10 | . 3 4 2 . 10 4 9 . 3 Tactical Retreats 22 | . 2 2 . . 5 3 9 . 1 Traps | -11 -10 -10 -8 -8 -6 -6 -6 -6 -5 ------- Run | Yrd Mat Sub Rec Scr Fac Low Low Zio Pro Traps Triggered 7 | . 2 1 . . 4 . . . . Indirectly . | . . . . . . . . . . Trap Hack Attempts . | . . . . . . . . . . Triggered . | . . . . . . . . . . Disarmed . | . . . . . . . . . . Reprogrammed . | . . . . . . . . . . Reused 10 | . . . . . 1 1 7 . 1 Traps Extracted . | . . . . . . . . . . Installed 14 | . . . . . 1 1 10 . 2 Triggered 10 | . . . . . 1 1 7 . 1 Most Traps Carried 12 | . . . . 3 3 12 12 3 3 Machines | -11 -10 -10 -8 -8 -6 -6 -6 -6 -5 ---------- Run | Yrd Mat Sub Rec Scr Fac Low Low Zio Pro Machines Disabled 13 | . 1 . 1 . 11 . . . . Max in Single Turn 3 | . 1 . 1 . 3 . . . . Garrison Access 1 | . . . . . 1 . . . . Machines Repaired . | . . . . . . . . . . Machines Dismantled . | . . . . . . . . . . Machines Sabotaged . | . . . . . . . . . . Overloaded Fab Kills . | . . . . . . . . . . Hacking | -11 -10 -10 -8 -8 -6 -6 -6 -6 -5 --------- Run | Yrd Mat Sub Rec Scr Fac Low Low Zio Pro Machines Accessed 39 | . 7 . 12 8 12 . . . . Terminals 14 | . 7 . 6 . 1 . . . . Fabricators 2 | . . . . . 2 . . . . Repair Stations 3 | . . . . . 3 . . . . Recycling Units 8 | . . . 4 . 4 . . . . Scanalyzers 1 | . . . . . 1 . . . . Garrison Access 1 | . . . . . 1 . . . . Total Hacks 155 | . 20 . 48 63 24 . . . . Successful 124 | . 10 . 37 63 14 . . . . Failed 30 | . 9 . 11 . 10 . . . . Catastrophic 3 | . 1 . 1 . 1 . . . . Database Lockouts 1 | . 1 . . . . . . . . Manual 52 | . 18 . 16 . 12 . . 6 . Terminals 42 | . 20 . 17 . 5 . . . . Fabricators 3 | . . . . . 3 . . . . Repair Stations 6 | . . . . . 6 . . . . Recycling Units 13 | . . . 7 . 6 . . . . Scanalyzers 3 | . . . . . 3 . . . . Garrison Access 1 | . . . . . 1 . . . . Terminal Hacks 97 | . 4 . 29 63 1 . . . . Record 87 | . . . 24 63 . . . . . Robot Analysis 3 | . 1 . 2 . . . . . . Prototype ID Bank 1 | . . . 1 . . . . . . Unreport Threat 1 | . . . 1 . . . . . . Locate Traps 3 | . 3 . . . . . . . . Recall Investigation 1 | . . . . . 1 . . . . Hauler Manifests 1 | . . . 1 . . . . . . Fabricator Hacks . | . . . . . . . . . . Repair Station Hacks 5 | . . . . . 5 . . . . Scan Component 3 | . . . . . 3 . . . . Repair 2 | . . . . . 2 . . . . Recycling Unit Hacks 3 | . . . 3 . . . . . . Report Inventory 1 | . . . 1 . . . . . . Retrieve Components 2 | . . . 2 . . . . . . Scanalyzer 1 | . . . . . 1 . . . . Insert Component 1 | . . . . . 1 . . . . Garrison Access Hacks 1 | . . . . . 1 . . . . Seal Access 1 | . . . . . 1 . . . . Unauthorized Hacks 17 | . 6 . 5 . 6 . . . . Terminals 13 | . 6 . 5 . 2 . . . . Track 3 | . 1 . 1 . 1 . . . . Botnet 9 | . 4 . 4 . 1 . . . . Operators 1 | . 1 . . . . . . . . Fabricators . | . . . . . . . . . . Repair Stations . | . . . . . . . . . . Recycling Units 4 | . . . . . 4 . . . . Fedlink 4 | . . . . . 4 . . . . Scanalyzers . | . . . . . . . . . . Garrison Access . | . . . . . . . . . . Data Cores Recovered . | . . . . . . . . . . Used . | . . . . . . . . . . Hacking Detections 21 | . 7 . 7 . 7 . . . . Full Trace Events . | . . . . . . . . . . Feedback Events . | . . . . . . . . . . Feedback Blocked . | . . . . . . . . . . Robot Schematics Acquired 3 | . . . . . . . . 3 . Robots Built . | . . . . . . . . . . Authchips . | . . . . . . . . . . Time . | . . . . . . . . . . Total Robot Build Rating . | . . . . . . . . . . Part Schematics Acquired 16 | . . . . . . . . 16 . Parts Built . | . . . . . . . . . . Authchips . | . . . . . . . . . . Time . | . . . . . . . . . . Total Part Build Rating . | . . . . . . . . . . Parts Repaired 2 | . . . . . 2 . . . . Time 69 | . . . . . 69 . . . . Parts Recycled . | . . . . . . . . . . Recycled Matter . | . . . . . . . . . . Retrieved Matter . | . . . . . . . . . . Retrieved Components 5 | . . . 5 . . . . . . Parts Scanalyzed 1 | . . . . . 1 . . . . Part Schematics Acquired . | . . . . . . . . . . Parts Damaged . | . . . . . . . . . . Bothacking | -11 -10 -10 -8 -8 -6 -6 -6 -6 -5 ------------ Run | Yrd Mat Sub Rec Scr Fac Low Low Zio Pro Used RIF Installer . | . . . . . . . . . . Robots Hacked . | . . . . . . . . . . Non-combat . | . . . . . . . . . . Combat . | . . . . . . . . . . Robot Hacks Applied . | . . . . . . . . . . Relay Couplers Released . | . . . . . . . . . . Fabnet Peak Effective % . | . . . . . . . . . . Robots Rewired 1 | . . . . . . . 1 . . Allies Hacked . | . . . . . . . . . . Hacks Repelled . | . . . . . . . . . . Allies | -11 -10 -10 -8 -8 -6 -6 -6 -6 -5 -------- Run | Yrd Mat Sub Rec Scr Fac Low Low Zio Pro Total Allies 5 | . . . . 1 . . 1 3 . Largest Group 3 | . . . . 1 1 . 1 3 3 Highest-Rated Group 104 | . . . . 78 78 . 47 104 104 Highest-Rated Ally 78 | . . . . 78 78 . 47 51 51 Total Orders . | . . . . . . . . . . Ally Attacks 72 | . . . . . 49 . 5 . 18 Total Damage 3141 | . . . . . 2317 . 157 . 667 Kills 25 | . . . . . 21 . 2 . 2 Allies Corrupted . | . . . . . . . . . . Allies Melted 1 | . . . . . 1 . . . . Intel | -11 -10 -10 -8 -8 -6 -6 -6 -6 -5 ------- Run | Yrd Mat Sub Rec Scr Fac Low Low Zio Pro Active Infowar (turns) 8585 | 101 556 832 914 325 3480 . 471 1648 258 Optics 3492 | . . . . . 1115 . 471 1648 258 Sensors 3377 | . . . . . 3377 . . . . Terrain 326 | . . . . . 326 . . . . Structural 2102 | . 191 774 173 325 639 . . . . Seismic 820 | 101 365 58 . . 296 . . . . Decoding 2377 | . . . . . . . 471 1648 258 Machine Analysis 741 | . . . 741 . . . . . . Robot Analysis Total 3 | . 1 . 2 . . . . . . Derelict Logs Recovered 7 | . . . . 5 . 1 . 1 . Drone Launches . | . . . . . . . . . . Drone Recoveries . | . . . . . . . . . . Exploration | -11 -10 -10 -8 -8 -6 -6 -6 -6 -5 ------------- Run | Yrd Mat Sub Rec Scr Fac Low Low Zio Pro Turns Passed 18601 | 198 1072 1317 1044 6997 4241 954 872 1648 258 Spaces Moved 10223 | 134 726 961 538 3987 1394 465 656 1179 183 Core 94 | 4 . . . . . . 90 . . Treads 1154 | . . . 273 788 80 13 . . . Legs 2147 | . . . . . . 375 410 1179 183 Wheels 6676 | 130 726 961 265 3199 1314 77 4 . . Hover . | . . . . . . . . . . Flight 152 | . . . . . . . 152 . . Fastest Speed 32 | 50 80 80 110 80 105 105 32 130 130 Average Speed 158 | 88 81 107 178 169 251 181 100 130 130 Slowest Speed 485 | 100 95 120 320 320 485 240 260 130 190 Overloaded Moves . | . . . . . . . . . . Propulsion Burnouts . | . . . . . . . . . . Robots Hopped . | . . . . . . . . . . Potential Cave-ins . | . . . . . . . . . . Cave-ins Triggered . | . . . . . . . . . . Exploration Rate (%) 62 | 8 99 43 94 93 33 69 68 90 32 Regions Visited 9 Branch Regions 7 Pre-discovered Areas 4 | . . . . 1 1 . . 2 . Known Exits Taken 2 | . . . . . 1 1 . . . Unknown Exits Taken 7 | 1 1 1 1 1 . . 1 1 . Scrap Searched 15 | . . 4 . 2 . 2 3 3 1 Spaces Dug 22 | . . 1 . . 21 . . . . Terrain Destroyed 122 | . . 1 1 . 118 1 1 . . Melee 5 | . . 1 . . 4 . . . . Projectile 44 | . . . 1 . 41 1 1 . . AOE 73 | . . . . . 73 . . . . Terrain Rammed . | . . . . . . . . . . Walls Destroyed . | . . . . . . . . . . Machines Disabled . | . . . . . . . . . . Actions | -11 -10 -10 -8 -8 -6 -6 -6 -6 -5 --------- Run | Yrd Mat Sub Rec Scr Fac Low Low Zio Pro Total 12039 | 179 1107 1129 606 4258 1887 534 846 1290 203 Wait 865 | . 286 68 48 94 156 7 90 102 14 Move 10214 | 133 725 960 537 3986 1393 464 655 1178 183 Hop . | . . . . . . . . . . Pick Up 213 | 13 13 8 4 82 53 22 18 . . Fast Attach 36 | 1 3 2 1 3 8 1 12 4 1 Attach 53 | 7 1 4 1 5 18 12 5 . . Detach 6 | . . . 1 3 1 . 1 . . Swap 160 | 2 18 15 7 6 104 1 6 1 . Drop 158 | 4 10 11 1 61 35 2 28 3 3 Fire 251 | 19 51 55 6 1 106 6 7 . . Melee 62 | . . 6 . 17 10 18 9 2 . Ram 2 | . . . . . 2 . . . . Kick . | . . . . . . . . . . Crush . | . . . . . . . . . . Escape Stasis . | . . . . . . . . . . Rewire 5 | . . . . . . . 5 . . Trap 14 | . . . . . 1 1 10 . 2 Miscellaneous . | . . . . . . . . . . Route ------- -11/Scrapyard -10/Materials (discovered 6 exits: [*Mat x3] / [*Min x2] / [*Sub]) -10/Subcaves (discovered 2 exits: [*Mat] / *Rec) -8/Recycling (discovered 2 exits: *Fac / *Scr) -8/Scraptown (discovered 2 exits: *Fac x2) -6/Factory (discovered 2 exits: Fac / *Low) -6/Lower Caves -6/Lower Caves -6/Zion (discovered 2 exits: [*Dee] / [*Pro]) -5/Proximity Caves History --------- Turn | Location | Event 20 | -11/Scrapyard | Discovered new exit (range 15) 199 | -11/Scrapyard | Entered Materials 214 | -10/Materials | Discovered new exit (range 16) 287 | -10/Materials | Discovered new exit (range 15) 316 | -10/Materials | Build established: Mutant 523 | -10/Materials | Discovered new exit (range 10) 624 | -10/Materials | Central database locked down 691 | -10/Materials | Discovered new exit (range 3) 877 | -10/Materials | Discovered new exit (range 8) 1122 | -10/Materials | Discovered new exit (range 6) 1271 | -10/Materials | Entered Subcaves 1272 | -10/Subcaves | Shifting Twisted Machinery released Sub. Machine Gun 1272 | -10/Subcaves | Approached by a straggling Scientist 1396 | -10/Subcaves | Disturbed a concealed Subdweller 1648 | -10/Subcaves | Lost 3 parts (1p1n1u) 1812 | -10/Subcaves | A swath of the cavern ceiling suddenly collapsed 2071 | -10/Subcaves | A swath of the cavern ceiling suddenly collapsed 2226 | -10/Subcaves | Shifting Twisted Machinery released Battle Cannon 2230 | -10/Subcaves | Shifting Twisted Machinery released Battle Rifle 2310 | -10/Subcaves | Shifting Twisted Machinery released Sub. Beam Cannon 2354 | -10/Subcaves | Discovered new exit (range 16) 2408 | -10/Subcaves | Discovered new exit (range 8) 2479 | -10/Subcaves | Core integrity fell below 50% 2588 | -10/Subcaves | Entered Recycling 2589 | -8/Recycling | Met a Zionite searching for Scraptown 2618 | -8/Recycling | Build established: Scavenger-Mutant 3114 | -8/Recycling | Discovered new exit (range 16) 3600 | -8/Recycling | Scanned before Scraplab entrance 3631 | -8/Recycling | Discovered new exit (range 2) 3632 | -8/Recycling | Entered Scraptown 3681 | -8/Scraptown | Heard Great Nut preacher, LISTEN AND RECITE! 3795 | -8/Scraptown | Build established: Mutant 3859 | -8/Scraptown | Scanned Subdweller tech in exchange for log data 3861 | -8/Scraptown | Learned location of 1 exit from Research 3863 | -8/Scraptown | Learned location of Extension (-4) 3864 | -8/Scraptown | Learned Factory stockpile data 3865 | -8/Scraptown | Learned 8 Factory zone layouts 3866 | -8/Scraptown | Learned location of 1 exit from Factory 3878 | -8/Scraptown | Discovered new exit (range 11) 4000 | -8/Scraptown | Visited Spacefarers 4076 | -8/Scraptown | Visited SPCMW 4117 | -8/Scraptown | Visited The Evicted 5060 | -8/Scraptown | Visited Cave Peace 5172 | -8/Scraptown | Visited Cyclists 5201 | -8/Scraptown | Visited UFD Registry 5204 | -8/Scraptown | Registered with UFD as "Laserdriver" 5275 | -8/Scraptown | Entered Cyclist Reading Room 5371 | -8/Scraptown | Visited Awakened 5441 | -8/Scraptown | Visited Science Testing Area 5886 | -8/Scraptown | Visited Observation Area 6065 | -8/Scraptown | Visited Scrapoid Pod Storage 6083 | -8/Scraptown | Found Scrapoid Pod 6601 | -8/Scraptown | Visited Junk Repository 6719 | -8/Scraptown | Visited Chapter 10 6808 | -8/Scraptown | Visited Curators Association 6840 | -8/Scraptown | Discovered new exit (range 5) 6927 | -8/Scraptown | Visited Junk Repository 6968 | -8/Scraptown | Visited Botcube Research 7024 | -8/Scraptown | Visited Science Guys 7066 | -8/Scraptown | Visited Infowarlord's Domain 7072 | -8/Scraptown | Found Exp. Sensor Array 8150 | -8/Scraptown | Found Lrg. Botcube 8357 | -8/Scraptown | Found Scrap Suit 8813 | -8/Scraptown | Lrg. Botcube activated 8847 | -8/Scraptown | Lrg. Botcube completed mutation into wheeled form, armed with 2 guns, 2 cannons. 8999 | -8/Scraptown | Build established: Hauler-Mutant 10308 | -8/Scraptown | Found Scrap Suit 10329 | -8/Scraptown | Found Scrap Suit 10478 | -8/Scraptown | Met Optimus 10478 | -8/Scraptown | Accepted into 0bPrime 10629 | -8/Scraptown | Entered Factory 10629 | -6/Factory | Accompanied by 1 ally 10629 | -6/Factory | Evolved 8 slots: Propulsion x2, Utility x5, Weapon x1 10630 | -6/Factory | Identified exit to Lower Caves 10631 | -6/Factory | Identified exit to Factory 10931 | -6/Factory | Build established: Hauler-Assassin 10948 | -6/Factory | Repaired Arm. Treads? 11263 | -6/Factory | Build established: Hauler-Mutant 11734 | -6/Factory | Build established: Hauler-Assassin 11819 | -6/Factory | Loaded intel: 8 recycling unit locations 12047 | -6/Factory | Build established: Hauler-Mutant 12228 | -6/Factory | Repaired Imp. Medium Treads? 12702 | -6/Factory | Build established: Hauler-Skirmisher 13286 | -6/Factory | Found Lrg. Botcube 13935 | -6/Factory | Learned location of Protoforge (-2) 14479 | -6/Factory | First assault squad dispatched 14653 | -6/Factory | Garrison activated, responded to threat 14722 | -6/Factory | Spotted B-75 Beast 14870 | -6/Factory | Entered Lower Caves 14987 | -6/Lower Caves | Build established: Mutant 15030 | -6/Lower Caves | Lost 5 parts (1p3n1u) 15353 | -6/Lower Caves | Learned Factory terminal intel 15499 | -6/Lower Caves | System corruption reached 10% 15789 | -6/Lower Caves | Discovered new exit (range 15) 15813 | -6/Lower Caves | Build established: Scavenger-Mutant 15820 | -6/Lower Caves | Identified exit to Lower Caves 15824 | -6/Lower Caves | Entered another Lower Caves area 15879 | -6/Lower Caves | Attracted the attention of an 0b10 outpost 15914 | -6/Lower Caves | Core integrity fell below 50% 15999 | -6/Lower Caves | Core integrity fell below 20% 16003 | -6/Lower Caves | Lost 8 parts (1p2n3u2w) 16073 | -6/Lower Caves | Found DCF Scrap (13 items) 16392 | -6/Lower Caves | Build established: Derelict-Mutant 16408 | -6/Lower Caves | Encountered a Warlord checkpoint 16528 | -6/Lower Caves | Discovered new exit (range 16) 16696 | -6/Lower Caves | Entered Zion 16738 | -6/Zion | System corruption cleaned by Quarantine Array 16966 | -6/Zion | Discovered new exit (range 20) 17262 | -6/Zion | Gained Derelict followers 17389 | -6/Zion | Received a visual enhancement algorithm 17392 | -6/Zion | Ran a visual enhancement algorithm 17717 | -6/Zion | Learned location of Quarantine (-3) 17840 | -6/Zion | Acquired unknown access codes intercepted by a Zionite 17896 | -6/Zion | Turned away by Imprinter 18051 | -6/Zion | Opened final containment barrier to the Deep Caves 18072 | -6/Zion | Discovered new exit (range 3) 18072 | -6/Zion | Saw the warning signs outside the Deep Caves entrance 18344 | -6/Zion | Entered Proximity Caves 18344 | -5/Proximity Caves | Accompanied by 3 allies 18548 | -5/Proximity Caves | Spotted B-75 Beast 18602 | -5/Proximity Caves | Destroyed by H-66 Slayer with Heavy Assault Rifle Last Messages --------------- 18565_ Acquired Mak. Leg. 18573_ Penetrated by Slug. 18575_ Dropped Fire Trap. 18575_ Installed Fire Trap. 18578_ Slug penetrates Wall. 18589_ Penetrated by Slug. 18589_ Slug penetrates Wall. 18590_ Penetrated by Slug. 18592_ Slug penetrates Wall. 18595_ Penetrated by Slug. 18596_ H-66 Slayer triggered Fire Trap. 18596_ Burning plasma bursts from the floor. 18596_ Dropped Dirty Bomb Trap. 18597_ Installed Dirty Bomb Trap. 18597_ Slug penetrates Wall. 18598_ H-66 Slayer heat spikes uncontrollably. 18598_ Penetrated by Slug. 18598_ Mak. Leg destroyed. 18602_ H-66 Slayer heat spikes uncontrollably. 18602_ Slug penetrates Wall. Map ----- +----------------------------------------------------+ | ?????????????????????????????????????????????????? | | ?????????????????????????????????????????????????? | | ?????????????????????????????????????????????????? | | ?????????????????????????????????????????????????? | | ?????????????????????????????????????????????????? | | ?????????????????????????????????????????????????? | | ?????????????????????????????????????????????????? | | ?????????????????????????????????????????????????? | | ?????????????????????????????????????????????????? | | ?????????????????????????????????????????????????? | | ?????????????????????????????????????????????????? | | ?????????????????????????????????????????????????? | | ?????????????????????????????????????????????????? | | ?????????????????????????????????????????????????? | | ?????????????????????????????????????????????????? | | ?????????????????????????????????????????????????? | | ?????????????????????????????????????????????????? | | ####???#########?????????????????????????????????? | | ##?## ##??????########??????????????????? | | # #?# "#??????# #??????????????????? | | # ### ##?????# ^ #??????????????????? | | ####### ## #??????????????????? | | =##hh#??????????????????? | | ## ### ! % # ^ #??????????????????? | | ### #?##%*## ####### #??????????????????? | | #?# #?#%%####???# @ ##??????????????????? | | #?# #?#!=#??????# ##???????????????????? | | ##?# ##?"% #??????# ##????????????????????? | | #??## ##?# ??????# #?????????????????????? | | #??## ##?? ????? ##?????????????????????? | | #####?? ???? ##??????????????????????? | | #????? ?? ###????????????????????????? | | #???# ?# ???????????????????????????? | | ## #???### ##????????????????????????????? | | #?# #????### ##?????????????????????????????? | | #?? #??????? ??????????????????????????????? | | #??? #??????? ??????????????????????????????? | | #????##??????? ??????????????????????????????? | | ##????????????? ?????????????????????????????? | | ???????????????# ?????????????????????????????? | | ????????????????####?????????????????????????????? | | ?????????????????????????????????????????????????? | | ?????????????????????????????????????????????????? | | ?????????????????????????????????????????????????? | | ?????????????????????????????????????????????????? | | ?????????????????????????????????????????????????? | | ?????????????????????????????????????????????????? | | ?????????????????????????????????????????????????? | | ?????????????????????????????????????????????????? | | ?????????????????????????????????????????????????? | +----------------------------------------------------+ Best States ------------- Heat Dissipation 56 Energy Generation 18 Energy Capacity 300 Matter Stores 300 Matter Capacity 300 Sight Range 22 Robot Scan Range 20 Terrain Scan Range 20 Terrain Scan Density 10 Armor Coverage 825 Resistance: TH 20 Resistance: EM 25 Phase Shifting 5 Evasion (%) 63 Recoil Reduction 4 Particle Charging 20 Salvage Targeting 1 Offensive Hacking 20 Item Schematics ----------------- IFF Parser | -6/Zion | Archive Neutrino Core | -6/Zion | Archive Arm. Medium Treads | -6/Zion | Archive Imp. Core Shielding | -6/Zion | Archive Imp. Kinecellerator | -6/Zion | Archive Hvy. Plasma Cannon | -6/Zion | Archive Dispersion Rifle | -6/Zion | Archive Hyp. Coil Gun | -6/Zion | Archive Hvy. Pick | -6/Zion | Archive System Guard | -6/Zion | Archive Imp. Recalibrator | -6/Zion | Archive Imp. Particle Charger | -6/Zion | Archive Adv. Shield Generator | -6/Zion | Archive Fusion Compressor | -6/Zion | Archive Centrium Wheel | -6/Zion | Archive Tiamat Missile Launcher | -6/Zion | Archive Robot Schematics ------------------ Y-54 Guardian | -6/Zion | Archive A-15 Conveyor | -6/Zion | Archive S-27 Virus | -6/Zion | Archive Fabricated ------------ Nothing Repaired ---------- Arm. Treads | 49% | -6/Factory Imp. Medium Treads | 30% | -6/Factory Alien Tech Used ----------------- None Achievements -------------- None Challenges ------------ None Game ------ Seed ActiveLongswordFlail Manual? 0 Play Time 02:33:46 Cumulative 358.5 hours Start 2025.06.03 @ 13:54:22 End 2025.06.04 @ 10:03:12 Sessions 7 Manual Loads 0 Difficulty Rogue Special Mode None Game No. 400 Rogue 400 Adventurer 0 Explorer 0 Win Type - Total 6 Types 3/1/1/1/0/0/0/0/0/0 Lore% 61 Gallery% 69 Achievement% 68 Wizard Run 0 Options --------- Layout 1 ASCII 0 Keyboard 0 Movement Numpad Keybinds 0 Fullscreen 1 Font 32/SmallcapsGlow Map View 50x35 Zoom Use 0% Tactical HUD 1 Map Filters NONE Filters NONE Steam 1 RUN: e250118d-ce56-4fc8-93e7-0d972bdc2696